fUSD/lending_fUSD_20250630
["ID","MTS","AMOUNT","RATE_DAILY","PERIOD"]
[368629527,1751251859308,-490.0,0.00018628,2]
[368629528,1751251859317,-490.0,0.00018628,2]
[368629529,1751251859327,-490.0,0.00018628,2]
[368629530,1751251859338,-753.01,0.00018628,2]
[368629531,1751251859347,-490.0,0.00018628,2]
[368629532,1751251859358,-490.0,0.00018628,2]
[368629533,1751251859367,-1214.46,0.00018628,2]
[368629534,1751251859377,-806.81,0.00018628,2]
[368629535,1751251859386,-529.16,0.00018628,2]
[368629536,1751251859395,-490.0,0.00018628,2]
[368629537,1751251859405,-770.62,0.00018628,2]
[368629538,1751251859414,-929.66,0.00018628,2]
[368629539,1751251859424,-490.0,0.00018628,2]
[368629540,1751251859434,-490.0,0.00018628,2]
[368629541,1751251859445,-360.61607527,0.00018628,2]
[368629542,1751251859454,-1084.19,0.00018628,2]
[368629543,1751251859463,-516.18,0.00018628,2]
[368629544,1751251859472,-490.0,0.00018628,2]
[368629545,1751251859482,-490.0,0.00018628,2]
[368629546,1751251859492,-490.0,0.00018628,2]
[368629547,1751251859501,-1413.27,0.00018628,2]
[368629548,1751251859510,-622.17,0.00018628,2]
[368629549,1751251859520,-540.08,0.00018628,2]
[368629550,1751251859529,-490.0,0.00018628,2]
[368629551,1751251859876,-490.0,0.00018628,2]
[368629552,1751251859888,-490.0,0.00018628,2]
[368629553,1751251859899,-490.0,0.00018628,2]
[368629554,1751251859909,-490.0,0.00018628,2]
[368629555,1751251859919,-953.4,0.00018628,2]
[368629556,1751251859930,-1449.6,0.00018628,2]
[368629557,1751251859940,-351.1496248,0.00018628,2]
[368629558,1751251859949,-742.28,0.00018628,2]
[368629559,1751251859958,-490.0,0.00018628,2]
[368629560,1751251859968,-558.14,0.00018628,2]
[368629561,1751251859979,-665.87,0.00018628,2]
[368629562,1751251859990,-490.0,0.00018628,2]
[368629563,1751251860000,-362.969957,0.00018628,2]
[368629564,1751251860009,-808.09,0.00018628,2]
[368629565,1751251860019,-495.18574231,0.00018628,2]
[368629566,1751251860028,-1555.39,0.00018628,2]
[368629567,1751251860038,-1197.04,0.00018628,2]
[368629568,1751251860048,-490.0,0.00018628,2]
[368629569,1751251860058,-712.43,0.00018628,2]
[368629570,1751251860068,-490.0,0.00018628,2]
[368629571,1751251860078,-490.0,0.00018628,2]
[368629572,1751251860088,-1005.51,0.00018628,2]
[368629573,1751251860098,-603.87,0.00018628,2]
[368629574,1751251860107,-490.0,0.00018628,2]
[368629575,1751251860117,-490.0,0.00018628,2]
[368629576,1751251860130,-490.0,0.00018628,2]
[368629577,1751251860139,-490.0,0.00018628,2]
[368629578,1751251860150,-595.18,0.00018628,2]
[368629579,1751251860160,-1150.89,0.00018628,2]
[368629580,1751251860169,-769.02,0.00018628,2]
[368629581,1751251860179,-490.0,0.00018628,2]
[368629582,1751251860190,-490.0,0.00018628,2]
[368629583,1751251860201,-1182.38,0.00018628,2]
[368629584,1751251860211,-490.0,0.00018628,2]
[368629585,1751251860220,-490.0,0.00018628,2]
[368629586,1751251860230,-490.0,0.00018628,2]
[368629587,1751251860240,-1039.16,0.00018628,2]
[368629588,1751251860250,-668.98,0.00018628,2]
[368629589,1751251860260,-490.0,0.00018628,2]
[368629590,1751251860270,-1133.4,0.00018628,2]
[368629591,1751251860279,-490.0,0.00018628,2]
[368629592,1751251860290,-490.0,0.00018628,2]
[368629593,1751251860302,-490.0,0.00018628,2]
[368629594,1751251860311,-2704.6,0.00018628,2]
[368629595,1751251860321,-684.77,0.00018628,2]
[368629596,1751251860331,-494.21451156,0.00018628,2]
[368629597,1751251860341,-1629.48,0.00018628,2]
[368629598,1751251860352,-490.0,0.00018628,2]
[368629599,1751251860361,-490.0,0.00018628,2]
[368629600,1751251860371,-490.0,0.00018628,2]
[368629601,1751251860381,-490.0,0.00018628,2]
[368629602,1751251860391,-490.0,0.00018628,2]
[368629603,1751251860400,-2625.87,0.00018628,2]
[368629604,1751251860410,-490.0,0.00018628,2]
[368629605,1751251860419,-536.5,0.00018628,2]
[368629606,1751251860428,-5845.11,0.00018628,2]
[368629607,1751251860440,-705.3,0.00018628,2]
[368629608,1751251860451,-490.0,0.00018628,2]
[368629609,1751251860460,-490.0,0.00018628,2]
[368629610,1751251860470,-490.0,0.00018628,2]
[368629611,1751251860480,-490.0,0.00018628,2]
[368629612,1751251860490,-490.0,0.00018628,2]
[368629613,1751251860500,-490.0,0.00018628,2]
[368629614,1751251860511,-490.0,0.00018628,2]
[368629615,1751251860521,-490.0,0.00018628,2]
[368629616,1751251860531,-490.0,0.00018628,2]
[368629617,1751251860540,-490.0,0.00018628,2]
[368629618,1751251860550,-1901.07,0.00018628,2]
[368629619,1751251860559,-1629.55,0.00018628,2]
[368629620,1751251860569,-549.85,0.00018628,2]
[368629621,1751251860578,-2484.8,0.00018628,2]
[368629622,1751251860587,-490.0,0.00018628,2]
[368629623,1751251860597,-490.0,0.00018628,2]
[368629624,1751251860607,-490.0,0.00018628,2]
[368629625,1751251860616,-660.81,0.00018628,2]
[368629626,1751251860626,-490.0,0.00018628,2]
[368629627,1751251860635,-2495.51,0.00018628,2]
[368629628,1751251860645,-3179.03,0.00018628,2]
[368629629,1751251860656,-490.0,0.00018628,2]
[368629630,1751251860666,-490.0,0.00018628,2]
[368629631,1751251860675,-490.0,0.00018628,2]
[368629632,1751251860685,-490.0,0.00018628,2]
[368629633,1751251860694,-490.0,0.00018628,2]
[368629634,1751251860704,-492.45,0.00018628,2]
[368629635,1751251860714,-1130.48,0.00018628,2]
[368629636,1751251860724,-2319.29,0.00018628,2]
[368629637,1751251860733,-1006.54,0.00018628,2]
[368629638,1751251860743,-2192.34,0.00018628,2]
[368629639,1751251860753,-490.0,0.00018628,2]
[368629640,1751251860762,-852.79,0.00018628,2]
[368629641,1751251860772,-657.55,0.00018628,2]
[368629642,1751251860782,-490.0,0.00018628,2]
[368629643,1751251860792,-490.0,0.00018628,2]
[368629644,1751251860801,-912.83,0.00018628,2]
[368629645,1751251860811,-490.0,0.00018628,2]
[368629646,1751251860821,-490.0,0.00018628,2]
[368629647,1751251860831,-490.0,0.00018628,2]
[368629648,1751251860840,-1158.24,0.00018628,2]
[368629649,1751251860850,-490.0,0.00018628,2]
[368629650,1751251860859,-10854.25,0.00018628,2]
[368629651,1751251860869,-614.78,0.00018628,2]
[368629652,1751251860879,-869.07,0.00018628,2]
[368629653,1751251860889,-490.0,0.00018628,2]
[368629654,1751251860898,-490.0,0.00018628,2]
[368629655,1751251860908,-490.0,0.00018628,2]
[368629656,1751251860918,-2819.07,0.00018628,2]
[368629657,1751251860928,-1345.4,0.00018628,2]
[368629658,1751251860938,-522.86,0.00018628,2]
[368629659,1751251860947,-2580.5,0.00018628,2]
[368629660,1751251860957,-490.0,0.00018628,2]
[368629661,1751251860967,-490.0,0.00018628,2]
[368629662,1751251860977,-6040.76,0.00018628,2]
[368629663,1751251860986,-1131.28,0.00018628,2]
[368629664,1751251860996,-490.0,0.00018628,2]
[368629665,1751251861006,-490.0,0.00018628,2]
[368629666,1751251861015,-490.0,0.00018628,2]
[368629667,1751251861024,-490.0,0.00018628,2]
[368629668,1751251861034,-490.0,0.00018629,2]
[368629669,1751251861043,-1073.89,0.00018629,2]
[368629670,1751251861052,-490.0,0.00018629,2]
[368629671,1751251861062,-749.2,0.00018629,2]
[368629672,1751251861071,-899.42,0.00018629,2]
[368629673,1751251861080,-490.0,0.00018629,2]
[368629674,1751251861090,-490.0,0.00018629,2]
[368629675,1751251861099,-485.32746772,0.00018629,2]
[368629676,1751251861108,-1000.0,0.00018629,2]
[368629677,1751251861118,-643.14,0.00018629,2]
[368629678,1751251861128,-490.0,0.00018629,2]
[368629679,1751251861137,-500.0,0.00018629,2]
[368629680,1751251861147,-490.0,0.00018629,2]
[368629681,1751251861158,-791.81,0.00018629,2]
[368629682,1751251861167,-490.0,0.00018629,2]
[368629683,1751251861176,-567.33739845,0.00018629,2]
[368629684,1751251861185,-523.46,0.00018629,2]
[368629685,1751251861195,-490.0,0.00018629,2]
[368629686,1751251861204,-490.0,0.00018629,2]
[368629687,1751251861213,-2366.28,0.00018629,2]
[368629688,1751251861222,-490.0,0.00018629,2]
[368629689,1751251861230,-490.0,0.00018629,2]
[368629690,1751251861239,-3147.78,0.00018629,2]
[368629691,1751251861248,-490.0,0.00018629,2]
[368629692,1751251861258,-490.0,0.00018629,2]
[368629693,1751251861267,-815.6,0.00018629,2]
[368629694,1751251861276,-688.36,0.00018629,2]
[368629695,1751251861286,-2650.12,0.00018629,2]
[368629696,1751251861295,-490.0,0.00018629,2]
[368629697,1751251861305,-490.0,0.00018629,2]
[368629698,1751251861314,-734.05,0.00018629,2]
[368629699,1751251861323,-490.0,0.00018629,2]
[368629700,1751251861333,-901.31,0.00018629,2]
[368629701,1751251861342,-902.0,0.00018629,2]
[368629702,1751251861351,-490.0,0.00018629,2]
[368629703,1751251861361,-1948.88,0.00018629,2]
[368629704,1751251861370,-221.79779011,0.00018629,2]
[368629705,1751251861380,-490.0,0.00018629,2]
[368629706,1751251861389,-510.0,0.00018629,2]
[368629707,1751251861400,-490.0,0.00018629,2]
[368629708,1751251861409,-1508.0,0.00018629,2]
[368629709,1751251861419,-490.0,0.00018629,2]
[368629710,1751251861430,-490.0,0.00018629,2]
[368629711,1751251861443,-995.76,0.00018629,2]
[368629712,1751251861454,-490.0,0.00018629,2]
[368629713,1751251861464,-2266.37,0.00018629,2]
[368629714,1751251861474,-490.0,0.00018629,2]
[368629715,1751251861484,-1406.41,0.00018629,2]
[368629716,1751251861493,-490.0,0.00018629,2]
[368629717,1751251861503,-1494.4,0.00018629,2]
[368629718,1751251861512,-2746.7,0.00018629,2]
[368629719,1751251861523,-490.0,0.00018629,2]
[368629720,1751251861533,-1033.76,0.00018629,2]
[368629721,1751251861542,-1220.36,0.00018629,2]
[368629722,1751251861551,-1878.62,0.00018629,2]
[368629723,1751251861560,-490.0,0.00018629,2]
[368629724,1751251861569,-1702.73,0.00018629,2]
[368629725,1751251861578,-1396.61,0.00018629,2]
[368629726,1751251861587,-490.0,0.00018629,2]
[368629727,1751251861597,-886.27,0.00018629,2]
[368629728,1751251861607,-490.0,0.00018629,2]
[368629729,1751251861616,-490.0,0.00018629,2]
[368629730,1751251861626,-1326.6,0.00018629,2]
[368629731,1751251861635,-2158.06,0.00018629,2]
[368629732,1751251861644,-868.85,0.00018629,2]
[368629733,1751251861654,-490.0,0.00018629,2]
[368629734,1751251861663,-490.0,0.00018629,2]
[368629735,1751251861673,-2914.25,0.00018629,2]
[368629736,1751251861683,-490.0,0.00018629,2]
[368629737,1751251861692,-490.0,0.00018629,2]
[368629738,1751251861701,-1624.74,0.00018629,2]
[368629739,1751251861711,-1650.52,0.00018629,2]
[368629740,1751251861720,-490.0,0.00018629,2]
[368629741,1751251861729,-1274.53,0.00018629,2]
[368629742,1751251861739,-490.0,0.00018629,2]
[368629743,1751251861748,-490.0,0.00018629,2]
[368629744,1751251861757,-1204.89,0.00018629,2]
[368629745,1751251861767,-491.71200135,0.00018629,2]
[368629746,1751251861777,-944.67,0.00018629,2]
[368629747,1751251861786,-1242.11,0.00018629,2]
[368629748,1751251861796,-1160.88,0.00018629,2]
[368629749,1751251861806,-490.0,0.00018629,2]
[368629750,1751251861816,-2826.78,0.00018629,2]
[368629751,1751251861832,-3589.26,0.00018629,2]
[368629752,1751251861850,-1018.36,0.00018629,2]
[368629753,1751251861867,-490.0,0.00018629,2]
[368629754,1751251861877,-1059.15,0.00018629,2]
[368629755,1751251861887,-490.0,0.00018629,2]
[368629756,1751251861897,-716.48,0.00018629,2]
[368629757,1751251861908,-1605.32,0.00018629,2]
[368629758,1751251861918,-490.0,0.00018629,2]
[368629759,1751251861928,-549.29084,0.00018629,2]
[368629760,1751251861938,-549.29084,0.00018629,2]
[368629761,1751251861948,-1981.18,0.00018629,2]
[368629762,1751251861957,-490.0,0.00018629,2]
[368629763,1751251861967,-549.29084,0.00018629,2]
[368629764,1751251861976,-549.29084,0.00018629,2]
[368629765,1751251861987,-1139.1,0.00018629,2]
[368629766,1751251861996,-490.0,0.00018629,2]
[368629767,1751251862006,-1237.49,0.00018629,2]
[368629768,1751251862016,-1810.15,0.00018629,2]
[368629769,1751251862025,-490.0,0.00018629,2]
[368629770,1751251862034,-490.0,0.00018629,2]
[368629771,1751251862044,-151.0,0.00018629,2]
[368629772,1751251862053,-151.0,0.00018629,2]
[368629773,1751251862063,-1654.41,0.00018629,2]
[368629774,1751251862073,-490.0,0.00018629,2]
[368629775,1751251862082,-2460.95,0.00018629,2]
[368629776,1751251862091,-490.0,0.00018629,2]
[368629777,1751251862101,-151.0,0.00018629,2]
[368629778,1751251862110,-154.547,0.00018629,2]
[368629779,1751251862120,-490.0,0.00018629,2]
[368629780,1751251862129,-490.0,0.00018629,2]
[368629781,1751251862138,-667.28,0.00018629,2]
[368629782,1751251862148,-490.0,0.00018629,2]
[368629783,1751251862158,-1149.23,0.00018629,2]
[368629784,1751251862167,-580.22,0.00018629,2]
[368629785,1751251862176,-151.0,0.00018629,2]
[368629786,1751251862187,-280.534918,0.00018629,2]
[368629787,1751251862197,-1704.96,0.00018629,2]
[368629788,1751251862206,-490.0,0.00018629,2]
[368629789,1751251862216,-153.422317,0.00018629,2]
[368629790,1751251862225,-2522.64,0.00018629,2]
[368629791,1751251862234,-7416.01,0.00018629,2]
[368629792,1751251862337,-490.0,0.00018629,2]
[368629793,1751251862348,-490.0,0.00018629,2]
[368629794,1751251862358,-490.0,0.00018629,2]
[368629795,1751251862368,-2606.44,0.00018629,2]
[368629796,1751251862377,-490.0,0.00018629,2]
[368629797,1751251862387,-1308.89,0.00018629,2]
[368629798,1751251862396,-490.0,0.00018629,2]
[368629799,1751251862405,-490.0,0.00018629,2]
[368629800,1751251862414,-711.96,0.00018629,2]
[368629801,1751251862423,-490.0,0.00018629,2]
[368629802,1751251862433,-5060.27,0.00018629,2]
[368629803,1751251862443,-2067.81,0.00018629,2]
[368629804,1751251862452,-2813.59,0.00018629,2]
[368629805,1751251862461,-1130.82,0.00018629,2]
[368629806,1751251862470,-583.0365354,0.00018629,2]
[368629807,1751251862482,-3055.29,0.00018629,2]
[368629808,1751251862491,-2054.27,0.00018629,2]
[368629809,1751251862500,-490.0,0.00018629,2]
[368629810,1751251862509,-1626.93,0.00018629,2]
[368629811,1751251862521,-1369.72,0.00018629,2]
[368629812,1751251862530,-490.0,0.00018629,2]
[368629813,1751251862539,-692.55,0.00018629,2]
[368629814,1751251862547,-5845.84,0.00018629,2]
[368629815,1751251862556,-490.0,0.00018629,2]
[368629816,1751251862565,-490.0,0.00018629,2]
[368629817,1751251862574,-1580.3,0.00018629,2]
[368629818,1751251862584,-2662.69,0.00018629,2]
[368629819,1751251862593,-1102.83,0.00018629,2]
[368629820,1751251862602,-5692.2,0.00018629,2]
[368629821,1751251862610,-490.0,0.00018629,2]
[368629822,1751251862619,-4087.74,0.00018629,2]
[368629823,1751251862628,-490.0,0.00018629,2]
[368629824,1751251862637,-490.0,0.00018629,2]
[368629825,1751251862645,-490.0,0.00018629,2]
[368629826,1751251862655,-2887.47,0.00018629,2]
[368629827,1751251862664,-5391.73,0.00018629,2]
[368629828,1751251862674,-490.0,0.00018629,2]
[368629829,1751251862683,-1111.8,0.00018629,2]
[368629830,1751251862692,-2604.06,0.00018629,2]
[368629831,1751251862701,-490.0,0.00018629,2]
[368629832,1751251862710,-1850.86,0.00018629,2]
[368629833,1751251862719,-2633.68,0.00018629,2]
[368629834,1751251862728,-5083.48314,0.00018629,2]
[368629835,1751251862739,-490.0,0.00018629,2]
[368629836,1751251862748,-1919.9,0.00018629,2]
[368629837,1751251862757,-490.0,0.00018629,2]
[368629838,1751251862765,-490.0,0.00018629,2]
[368629839,1751251862775,-490.0,0.00018629,2]
[368629840,1751251862784,-2227.63,0.00018629,2]
[368629841,1751251862794,-3038.95,0.00018629,2]
[368629842,1751251862803,-3242.21,0.00018629,2]
[368629843,1751251862812,-490.0,0.00018629,2]
[368629844,1751251862822,-1415.06,0.00018629,2]
[368629845,1751251862831,-5999.62,0.00018629,2]
[368629846,1751251862840,-490.0,0.00018629,2]
[368629847,1751251862849,-782.66,0.00018629,2]
[368629848,1751251862858,-2724.35,0.00018629,2]
[368629849,1751251862868,-490.0,0.00018629,2]
[368629850,1751251862878,-5254.83619,0.00018629,2]
[368629851,1751251862887,-3142.01,0.00018629,2]
[368629852,1751251862896,-3711.43,0.00018629,2]
[368629853,1751251862905,-490.0,0.00018629,2]
[368629854,1751251862915,-490.0,0.00018629,2]
[368629855,1751251862925,-2539.09,0.00018629,2]
[368629856,1751251862937,-3198.41,0.00018629,2]
[368629857,1751251862953,-2801.03,0.00018629,2]
[368629858,1751251862972,-5625.65,0.00018629,2]
[368629859,1751251862984,-3325.28,0.00018629,2]
[368629860,1751251862993,-4723.880595,0.00018629,2]
[368629861,1751251863004,-156.544188,0.00018629,2]
[368629862,1751251863013,-490.83030142,0.00018629,2]
[368629863,1751251863022,-583.84,0.00018629,2]
[368629864,1751251863031,-3380.87,0.00018629,2]
[368629865,1751251863041,-2041.83,0.00018629,2]
[368629866,1751251863050,-670.965871,0.00018629,2]
[368629867,1751251863060,-154.582315,0.00018629,2]
[368629868,1751251863069,-3148.4,0.00018629,2]
[368629869,1751251863078,-3326.13,0.00018629,2]
[368629870,1751251863088,-3110.07,0.00018629,2]
[368629871,1751251863098,-390.80386107,0.00018629,2]
[368629872,1751251863107,-1532.12,0.00018629,2]
[368629873,1751251863117,-490.0,0.00018629,2]
[368629874,1751251863127,-2562.21,0.00018629,2]
[368629875,1751251863136,-6000.18,0.00018629,2]
[368629876,1751251863145,-490.0,0.00018629,2]
[368629877,1751251863155,-490.0,0.00018629,2]
[368629878,1751251863164,-3003.58,0.00018629,2]
[368629879,1751251863174,-490.0,0.00018629,2]
[368629880,1751251863183,-11523.65,0.00018629,2]
[368629881,1751251863192,-490.0,0.00018629,2]
[368629882,1751251863202,-2042.31,0.00018629,2]
[368629883,1751251863212,-490.0,0.00018629,2]
[368629884,1751251863221,-1252.39,0.00018629,2]
[368629885,1751251863231,-6909.95,0.00018629,2]
[368629886,1751251863240,-490.0,0.00018629,2]
[368629887,1751251863250,-37000.14,0.00018629,2]
[368629888,1751251863259,-11979.48,0.00018629,2]
[368629889,1751251863269,-490.0,0.00018629,2]
[368629890,1751251863278,-5737.06,0.00018629,2]
[368629891,1751251863287,-1586.1,0.00018629,2]
[368629892,1751251863296,-971.44,0.00018629,2]
[368629893,1751251863305,-490.0,0.00018629,2]
[368629894,1751251863315,-8918.43,0.00018629,2]
[368629895,1751251863323,-4406.9,0.00018629,2]
[368629896,1751251863333,-5489.35,0.00018629,2]
[368629897,1751251863343,-2788.63,0.00018629,2]
[368629898,1751251863352,-5974.88,0.00018629,2]
[368629899,1751251863362,-490.0,0.00018629,2]
[368629900,1751251863371,-14092.07,0.00018629,2]
[368629901,1751251863380,-725.24,0.00018629,2]
[368629902,1751251863389,-3618.52,0.00018629,2]
[368629903,1751251863398,-2655.79,0.00018629,2]
[368629904,1751251863407,-490.0,0.00018629,2]
[368629905,1751251863417,-7549.98,0.00018629,2]
[368629906,1751251863427,-490.0,0.00018629,2]
[368629907,1751251863438,-1462.67,0.00018629,2]
[368629908,1751251863449,-490.0,0.00018629,2]
[368629909,1751251863459,-2768.03,0.00018629,2]
[368629910,1751251863468,-490.0,0.00018629,2]
[368629911,1751251863478,-2153.44,0.00018629,2]
[368629912,1751251863487,-490.0,0.00018629,2]
[368629913,1751251863498,-1156.94,0.00018629,2]
[368629914,1751251863507,-3648.15,0.00018629,2]
[368629915,1751251863516,-490.0,0.00018629,2]
[368629916,1751251863526,-3141.2,0.00018629,2]
[368629917,1751251863536,-490.0,0.00018629,2]
[368629918,1751251863545,-4757.92,0.00018629,2]
[368629919,1751251863554,-1286.38,0.00018629,2]
[368629920,1751251863563,-1149.64,0.00018629,2]
[368629921,1751251863573,-3445.29,0.00018629,2]
[368629922,1751251863582,-1547.58,0.00018629,2]
[368629923,1751251863591,-2561.19,0.00018629,2]
[368629924,1751251863600,-490.0,0.00018629,2]
[368629925,1751251863610,-2869.81,0.00018629,2]
[368629926,1751251863619,-1642.54,0.00018629,2]
[368629927,1751251863628,-490.0,0.00018629,2]
[368629928,1751251863638,-490.0,0.00018629,2]
[368629929,1751251863648,-3711.38,0.00018629,2]
[368629930,1751251863658,-490.0,0.00018629,2]
[368629931,1751251863667,-1823.46,0.00018629,2]
[368629932,1751251863676,-490.0,0.00018629,2]
[368629933,1751251863685,-5190.33,0.00018629,2]
[368629934,1751251863695,-3957.87,0.00018629,2]
[368629935,1751251863704,-1592.93,0.00018629,2]
[368629936,1751251863713,-2930.53,0.00018629,2]
[368629937,1751251863723,-9921.64,0.00018629,2]
[368629938,1751251863732,-2287.65,0.00018629,2]
[368629939,1751251863741,-3034.06,0.00018629,2]
[368629940,1751251863751,-575.77,0.00018629,2]
[368629941,1751251863760,-4570.36,0.00018629,2]
[368629942,1751251863770,-1780.89,0.00018629,2]
[368629943,1751251863779,-490.0,0.00018629,2]
[368629944,1751251863789,-490.0,0.00018629,2]
[368629945,1751251863798,-490.0,0.00018629,2]
[368629946,1751251863807,-1841.53,0.00018629,2]
[368629947,1751251863817,-3135.19,0.00018629,2]
[368629948,1751251863827,-4796.81,0.00018629,2]
[368629949,1751251863836,-490.0,0.00018629,2]
[368629950,1751251863845,-1312.25,0.00018629,2]
[368629951,1751251863855,-1982.09,0.00018629,2]
[368629952,1751251863865,-9615.71,0.00018629,2]
[368629953,1751251863874,-268.732985,0.00018629,2]
[368629954,1751251863884,-490.0,0.00018629,2]
[368629955,1751251863894,-268.732985,0.00018629,2]
[368629956,1751251863904,-300.0,0.00018629,2]
[368629957,1751251863914,-5940.92,0.00018629,2]
[368629958,1751251863924,-1522.28,0.00018629,2]
[368629959,1751251863934,-490.0,0.00018629,2]
[368629960,1751251863944,-16959.56,0.00018629,2]
[368629961,1751251863953,-268.732985,0.00018629,2]
[368629962,1751251863963,-268.732985,0.00018629,2]
[368629963,1751251863972,-2999.94,0.00018629,2]
[368629964,1751251863982,-6658.78,0.00018629,2]
[368629965,1751251863993,-8542.98,0.00018629,2]
[368629966,1751251864002,-490.0,0.00018629,2]
[368629967,1751251864012,-490.0,0.00018629,2]
[368629968,1751251864022,-1961.53,0.00018629,2]
[368629969,1751251864032,-2259.83,0.00018629,2]
[368629970,1751251864042,-2583.65,0.00018629,2]
[368629971,1751251864051,-4480.33,0.00018629,2]
[368629972,1751251864061,-9219.47,0.00018629,2]
[368629973,1751251864070,-6267.23,0.00018629,2]
[368629974,1751251864080,-4680.89,0.00018629,2]
[368629975,1751251864089,-2193.03,0.00018629,2]
[368629976,1751251864099,-1533.08,0.00018629,2]
[368629977,1751251864109,-1416.92,0.00018629,2]
[368629978,1751251864118,-490.0,0.00018629,2]
[368629979,1751251864127,-1476.84,0.00018629,2]
[368629980,1751251864137,-9965.13,0.00018629,2]
[368629981,1751251864147,-490.0,0.00018629,2]
[368629982,1751251864157,-3492.88,0.00018629,2]
[368629983,1751251864166,-12586.8,0.00018629,2]
[368629984,1751251864176,-2356.54,0.00018629,2]
[368629985,1751251864185,-490.0,0.00018629,2]
[368629986,1751251864195,-1367.82,0.00018629,2]
[368629987,1751251864205,-2748.66,0.00018629,2]
[368629988,1751251864215,-2321.41,0.00018629,2]
[368629989,1751251864224,-490.0,0.00018629,2]
[368629990,1751251864234,-278.90468339,0.00018629,2]
[368629991,1751251864244,-490.0,0.0001863,2]
[368629992,1751251864253,-610.08,0.0001863,2]
[368629993,1751251864263,-772.12,0.0001863,2]
[368629994,1751251864273,-874.69,0.0001863,2]
[368629995,1751251864283,-1786.43,0.0001863,2]
[368629996,1751251864292,-636.04,0.0001863,2]
[368629997,1751251864301,-941.24,0.0001863,2]
[368629998,1751251864311,-718.91,0.0001863,2]
[368629999,1751251864320,-156.18413397,0.0001863,2]
[368630000,1751251864329,-855.65,0.0001863,2]
[368630001,1751251864339,-500.7699242,0.0001863,2]
[368630002,1751251864349,-613.2,0.0001863,2]
[368630003,1751251864358,-490.0,0.0001863,2]
[368630004,1751251864369,-490.0,0.0001863,2]
[368630005,1751251864378,-490.0,0.0001863,2]
[368630006,1751251864388,-490.0,0.0001863,2]
[368630007,1751251864398,-567.61,0.0001863,2]
[368630008,1751251864408,-200.0,0.0001863,2]
[368630009,1751251864418,-490.0,0.0001863,2]
[368630010,1751251864427,-490.0,0.0001863,2]
[368630011,1751251864436,-490.0,0.0001863,2]
[368630012,1751251864448,-490.0,0.0001863,2]
[368630013,1751251864458,-490.0,0.0001863,2]
[368630014,1751251864467,-729.38,0.0001863,2]
[368630015,1751251864476,-1076.43,0.0001863,2]
[368630016,1751251864486,-490.0,0.0001863,2]
[368630017,1751251864496,-972.21,0.0001863,2]
[368630018,1751251864505,-490.0,0.0001863,2]
[368630019,1751251864516,-1095.99,0.0001863,2]
[368630020,1751251864526,-771.51,0.0001863,2]
[368630021,1751251864536,-490.0,0.0001863,2]
[368630022,1751251864546,-490.0,0.0001863,2]
[368630023,1751251864560,-546.08,0.0001863,2]
[368630024,1751251864570,-684.76,0.0001863,2]
[368630025,1751251864580,-490.0,0.0001863,2]
[368630026,1751251864589,-490.0,0.0001863,2]